bitfinex-derivatives/quotes_ETHF0:USTF0_20240831
["timestamp","ask_amount","ask_price","bid_price","bid_amount"]
[1725110107549,8.33061836,2525.7,2525.4,1.09894436]
[1725110107750,8.94495836,2525.7,2525.4,1.09894436]
[1725110108049,4.82214,2525.7,2525.4,1.09894436]
[1725110108254,4.44534,2525.7,2525.4,1.09894436]
[1725110111764,1.23754,2525.7,2525.4,1.09894436]
[1725110112060,1.0,2525.7,2525.4,1.09894436]
[1725110112559,1.23754,2525.7,2525.4,1.09894436]
[1725110113157,1.0,2525.7,2525.4,1.09894436]
[1725110116473,0.23755,2525.6,2525.4,0.74304436]
[1725110116671,0.98765,2525.6,2525.4,0.74304436]
[1725110116856,0.3869,2525.5,2525.4,0.74304436]
[1725110117172,1.62446,2525.5,2525.4,0.00594436]
[1725110135474,5.58446,2525.5,2525.4,0.00594436]
[1725110136076,0.23761,2525.0,2524.9,0.7449]
[1725110136276,0.23762,2524.9,2524.7,0.3699]
[1725110136467,0.59272,2524.9,2524.7,0.3699]
[1725110137668,0.97942,2524.9,2524.7,0.3699]
[1725110139167,0.23764,2524.7,2524.6,0.765]
[1725110139481,0.23764,2524.7,2524.6,1.1363]
[1725110140878,1.23763,2524.8,2524.6,1.1363]
[1725110141172,0.23764,2524.7,2524.5,3.21374436]
[1725110141378,1.0,2524.6,2524.5,0.00594436]
[1725110141568,1.0,2524.6,2524.5,0.74794436]
[1725110146081,9.42026164,2524.6,2524.5,0.00594436]
[1725110146269,9.77346164,2524.6,2524.5,0.00594436]
[1725110149086,10.01110164,2524.6,2524.5,0.00594436]
[1725110150904,10.39240164,2524.6,2524.5,0.00594436]
[1725110151191,10.77610164,2524.6,2524.5,0.00594436]
[1725110152678,10.01110164,2524.6,2524.5,0.00594436]
[1725110153486,9.42026164,2524.6,2524.5,0.00594436]
[1725110156079,9.65790164,2524.6,2524.5,0.00594436]
[1725110161093,8.65790164,2524.6,2524.5,0.00594436]
[1725110161295,0.3886,2524.8,2524.5,0.00594436]
[1725110161296,4.13563,2524.8,2524.5,0.00594436]
[1725110163696,1.0,2524.9,2524.6,0.23764]
[1725110163999,3.898,2524.9,2524.7,1.1294]
[1725110165191,1.0,2524.9,2524.7,1.1294]
[1725110165597,1.0,2524.9,2524.7,1.36703]
[1725110169299,1.0,2524.9,2524.7,1.1294]
[1725110169500,1.0,2524.8,2524.7,1.1294]
[1725110175901,1.0,2524.8,2524.7,1.36704]
[1725110176803,2.898,2525.0,2524.9,0.23762]
[1725110177012,0.00594436,2525.1,2524.7,1.1294]
[1725110177223,0.00594436,2525.1,2525.0,0.23761]
[1725110178302,0.00594436,2525.1,2524.9,0.23761]
[1725110178700,0.00594436,2525.1,2525.0,0.3774]
[1725110186318,0.00594436,2525.1,2525.0,0.61501]
[1725110193424,0.00594436,2525.1,2525.0,0.3774]
[1725110193627,0.39184436,2525.1,2525.0,0.3774]
[1725110206933,0.62944436,2525.1,2524.7,0.99613]
[1725110207250,0.23763,2524.8,2524.7,1.1107]
[1725110207443,0.23763,2524.8,2524.7,0.736]
[1725110207638,0.61343,2524.8,2524.7,0.736]
[1725110208144,0.3758,2524.8,2524.7,0.736]
[1725110210339,1.0,2524.9,2524.7,0.736]
[1725110211336,1.0,2524.9,2524.7,1.1128]
[1725110211644,1.23762,2524.9,2524.7,1.1128]
[1725110211837,1.0,2524.9,2524.7,1.1128]
[1725110212933,1.23762,2524.9,2524.7,1.1128]
[1725110214942,0.23763,2524.8,2524.7,1.1128]
[1725110215147,3.81293,2524.8,2524.5,0.00594436]
[1725110215337,0.3662,2524.7,2524.5,0.38354436]
[1725110220853,3.2078,2524.8,2524.5,0.38354436]
[1725110221047,1.59722,2524.9,2524.5,0.38354436]
[1725110221441,4.55779089,2524.8,2524.5,0.38354436]
[1725110224743,4.55779089,2524.8,2524.5,0.62119436]
[1725110224942,4.79542089,2524.8,2524.5,0.62119436]
[1725110230155,4.55779089,2524.8,2524.5,0.62119436]
[1725110232648,4.79542089,2524.8,2524.5,0.62119436]
[1725110233249,4.55779089,2524.8,2524.6,0.23764]
[1725110233649,4.55779089,2524.8,2524.7,0.7499]
[1725110234154,0.36694436,2525.1,2524.9,0.23762]
[1725110234351,0.36694436,2525.1,2525.0,0.61981]
[1725110234558,0.00594436,2525.1,2525.0,0.3822]
[1725110236656,0.00594436,2525.1,2525.0,0.61981]
[1725110236857,0.00594436,2525.1,2525.0,4.57981]
[1725110259073,0.7467,2525.5,2525.4,0.23757]
[1725110261482,1.00594436,2525.7,2525.6,0.23755]
[1725110261686,1.37764436,2525.7,2525.6,0.23755]
[1725110262983,0.00594436,2525.7,2525.6,0.23755]
[1725110267884,1.00594436,2525.7,2525.6,0.23755]
[1725110268089,0.00594436,2525.7,2525.6,0.23755]
[1725110275988,4.6486,2526.3,2525.6,3.9592]
[1725110276191,0.3575,2526.2,2526.1,0.2375]
[1725110279999,1.3662,2526.3,2526.2,0.23749]
[1725110280698,1.3662,2526.3,2526.1,0.2375]
[1725110282394,1.3662,2526.3,2526.0,0.23751]
[1725110285494,1.60369,2526.3,2526.0,0.23751]
[1725110285701,1.60369,2526.3,2525.9,0.24346436]
[1725110286396,1.60369,2526.3,2526.0,0.23751]
[1725110289496,1.60369,2526.3,2525.9,0.24346436]
[1725110289987,1.60369,2526.3,2526.0,0.23751]
[1725110290398,1.60369,2526.3,2526.1,0.3798]
[1725110290799,0.23749,2526.2,2526.1,0.3798]
[1725110290997,1.60369,2526.3,2526.1,0.3798]
[1725110297406,1.3662,2526.3,2526.1,0.3798]
[1725110297706,1.60369,2526.3,2526.1,0.3798]
[1725110301813,1.3662,2526.3,2526.1,0.3798]
[1725110306917,1.60369,2526.3,2526.1,0.3798]
[1725110308012,1.3662,2526.3,2526.1,0.3798]
[1725110315636,1.60369,2526.3,2526.1,0.3798]
[1725110316039,0.38,2526.2,2526.1,0.3798]
[1725110316243,0.38,2526.2,2525.9,0.24346436]
[1725110316442,0.3564,2526.1,2525.9,0.61036436]
[1725110317636,0.3564,2526.1,2525.9,0.37284436]
[1725110321838,0.3564,2526.1,2525.9,3.58064436]
[1725110327538,0.23754,2525.7,2525.6,3.2078]
[1725110327746,4.9592,2525.7,2525.4,0.7463]
[1725110327939,0.23756,2525.5,2525.4,0.7463]
[1725110328344,4.19756,2525.5,2525.4,0.7463]
[1725110328947,4.19756,2525.5,2525.3,7.7516]
[1725110329149,0.23756,2525.5,2525.3,7.7516]
[1725110329657,1.35375,2525.6,2525.4,0.3734]
[1725110329953,4.2214305,2525.5,2525.4,0.3734]
[1725110330250,0.59025,2525.6,2525.4,0.3734]
[1725110330251,0.3527,2525.6,2525.4,0.3734]
[1725110330751,1.61443,2525.8,2525.4,0.3734]
[1725110331053,0.3718,2525.8,2525.4,1.61096]
[1725110331948,3.50833,2525.9,2525.4,1.61096]
[1725110332149,3.2708,2525.9,2525.4,1.61096]
[1725110332752,3.2657,2526.0,2525.6,1.0]
[1725110332948,3.62577089,2526.2,2525.8,1.23753]
[1725110333259,8.33064764,2526.3,2525.9,0.3889]
[1725110333260,4.12042383,2526.1,2525.9,0.3889]
[1725110333648,4.12865987,2526.2,2525.9,0.3889]
[1725110333847,4.20559,2526.3,2525.9,0.3889]
[1725110334249,4.12865987,2526.2,2525.9,0.3889]
[1725110334453,4.20559,2526.3,2525.9,0.3889]
[1725110335546,0.23749,2526.2,2525.9,0.3889]
[1725110337558,4.20559,2526.3,2525.9,0.3889]
[1725110339158,4.20559,2526.3,2526.0,0.3861]
[1725110339657,0.99779,2526.3,2526.0,0.3861]
[1725110340161,0.3875,2526.3,2526.0,0.3861]
[1725110340462,0.23749,2526.3,2526.0,0.3861]
[1725110341376,7.72682436,2526.4,2526.0,0.62361]
[1725110342461,7.48934436,2526.4,2526.0,0.62361]
[1725110342662,4.21374436,2526.4,2526.1,0.2375]
[1725110343765,4.45122436,2526.4,2526.0,0.62361]
[1725110344166,0.385,2526.3,2526.0,0.62361]
[1725110344960,0.385,2526.3,2526.0,0.99541]
[1725110346053,1.0,2526.2,2526.0,0.7579]
[1725110346254,0.19662932,2526.1,2526.0,0.7579]
[1725110346469,0.57942932,2526.1,2526.0,0.7579]
[1725110346768,0.3828,2526.1,2526.0,0.7579]
[1725110347172,0.6203,2526.1,2526.0,0.3718]
[1725110347371,0.3828,2526.1,2526.0,0.3718]
[1725110349272,0.6203,2526.1,2526.0,0.3718]
[1725110349772,0.3828,2526.1,2526.0,0.3718]
[1725110357771,1.0,2526.2,2526.0,0.3718]
[1725110357967,0.7718,2526.3,2526.0,0.3718]
[1725110358173,4.21374436,2526.4,2526.1,0.6083]
[1725110358683,4.21374436,2526.4,2526.2,0.60179]
[1725110358975,4.21374436,2526.4,2526.2,0.3643]
[1725110366078,3.21374436,2526.4,2526.3,0.23748]
[1725110366278,3.21374436,2526.4,2526.3,0.59868]
[1725110366685,3.21374436,2526.4,2526.3,0.3612]
[1725110367692,3.21374436,2526.4,2526.3,0.59868]
[1725110370181,0.00594436,2526.4,2526.3,0.59868]
[1725110380882,0.00594436,2526.4,2526.3,4.55708]
[1725110383295,0.00594436,2526.4,2526.3,0.59868]
[1725110392202,0.00594436,2526.4,2526.3,4.55708]
[1725110392397,0.00594436,2526.4,2526.3,5.55708]
[1725110393890,0.00594436,2526.4,2526.3,4.55708]
[1725110394094,0.00594436,2526.4,2526.3,5.55708]
[1725110400403,0.00594436,2526.4,2526.3,8.76488]
[1725110404514,0.00594436,2526.4,2526.3,4.80648]
[1725110405102,0.00594436,2526.4,2526.3,3.80648]
[1725110406807,0.00594436,2526.4,2526.3,7.76488]
[1725110407004,0.00594436,2526.4,2526.3,8.76488]
[1725110410307,0.00594436,2526.4,2526.3,10.15050331]
[1725110410516,0.00594436,2526.4,2526.3,11.18644031]
[1725110415204,3.62577089,2527.1,2526.3,20.04009339]
[1725110415406,0.3788,2527.2,2527.1,0.2374]
[1725110416206,0.3788,2527.2,2526.9,0.00594436]
[1725110416207,8.5434,2527.2,2526.9,0.00594436]
[1725110416413,8.5434,2527.2,2526.6,4.158]
[1725110416414,3.62577089,2527.0,2526.6,4.158]
[1725110416611,1.0,2526.8,2526.6,4.158]
[1725110416914,0.23745,2526.7,2526.6,4.158]
[1725110417308,3.9576,2526.7,2526.6,4.158]
[1725110419810,4.3282,2526.7,2526.6,4.158]
[1725110420911,4.3282,2526.7,2526.4,0.00594436]
[1725110421117,0.3717,2526.6,2526.4,0.00594436]
[1725110421320,0.37,2526.5,2526.4,0.00594436]
[1725110430217,0.60747,2526.5,2526.4,0.00594436]
[1725110430416,4.56587,2526.5,2526.4,0.00594436]
[1725110434325,0.60747,2526.5,2526.4,0.00594436]
[1725110440222,0.60916,2526.6,2526.4,0.00594436]
[1725110440820,3.2078,2526.7,2526.4,1.00594436]
[1725110441132,4.12505764,2526.9,2526.6,1.23745]
[1725110441133,0.3739,2526.9,2526.6,1.23745]
[1725110441324,0.3739,2526.9,2526.7,0.3685]
[1725110441821,0.59482,2527.0,2526.7,0.3685]
[1725110441822,0.3574,2527.0,2526.8,0.372]
[1725110442228,0.23743,2526.9,2526.5,0.62206]
[1725110442425,0.59482,2527.0,2526.7,0.372]
[1725110442826,0.23743,2526.9,2526.7,0.372]
[1725110445034,1.23743,2526.9,2526.7,0.372]
[1725110445239,0.3592,2526.8,2526.7,0.372]
[1725110447821,0.59664,2526.8,2526.7,0.372]
[1725110448028,14.60705261,2526.8,2526.4,0.00594436]
[1725110448231,0.23746,2526.6,2526.4,0.36634436]
[1725110449335,1.94885,2526.7,2526.4,0.36634436]
[1725110449727,4.4360374,2526.6,2526.4,0.36634436]
[1725110456240,4.6734974,2526.6,2526.4,0.36634436]
[1725110458735,0.23747,2526.5,2526.4,0.36634436]
[1725110464745,4.4360374,2526.6,2526.4,0.36634436]
[1725110465352,4.4360374,2526.6,2526.4,0.60381436]
[1725110468652,0.23744,2526.8,2526.4,0.60381436]
[1725110469047,4.35096669,2526.7,2526.4,0.60381436]
[1725110474451,4.58841669,2526.7,2526.4,0.36634436]
[1725110474846,0.3538,2526.6,2526.4,0.36634436]
[1725110479853,3.2078,2526.7,2526.4,0.60381436]
[1725110481163,3.2078,2526.7,2526.5,0.23746]
[1725110481455,3.2078,2526.7,2526.5,1.23746]
[1725110482260,0.3594,2526.9,2526.6,0.23746]
[1725110482559,0.3594,2526.9,2526.7,1.1077]
[1725110487867,0.3594,2526.9,2526.7,1.34515]
[1725110491361,0.3594,2526.9,2526.7,1.1077]
[1725110500579,0.59683,2526.9,2526.7,1.1077]
[1725110507392,0.3594,2526.9,2526.7,1.1077]
[1725110513592,0.96022,2527.0,2526.7,1.1077]
[1725110514895,0.60292,2527.0,2526.7,1.34515]
[1725110518394,0.3655,2527.0,2526.7,1.34515]
[1725110522198,0.60292,2527.0,2526.7,1.1077]
[1725110525411,4.23630714,2527.0,2526.7,1.1077]
[1725110525708,0.23743,2526.9,2526.7,1.1077]
[1725110527598,0.23744,2526.8,2526.7,1.1077]
[1725110527796,0.61304,2526.8,2526.7,1.1077]
[1725110528207,4.3332,2526.8,2526.4,0.00594436]
[1725110528409,4.92789697,2526.8,2526.4,0.00594436]
[1725110528706,8.56128411,2526.8,2526.4,0.00594436]
[1725110528910,0.23747,2526.5,2526.4,0.00594436]
[1725110529112,0.23745,2526.7,2526.4,0.00594436]
[1725110531414,0.23746,2526.6,2526.4,0.00594436]
[1725110533307,0.23747,2526.5,2526.4,0.00594436]
[1725110533913,0.59107,2526.5,2526.4,0.00594436]
[1725110539821,3.44523,2526.9,2526.4,5.20181436]
[1725110540026,3.44523,2526.9,2526.4,1.24341436]
[1725110542123,4.44523,2526.9,2526.4,1.24341436]
[1725110543923,4.44523,2526.9,2526.5,0.23747]
[1725110544122,4.44523,2526.9,2526.6,0.7663]
[1725110544326,4.44523,2526.9,2526.6,1.13]
[1725110549021,4.2078,2526.9,2526.6,1.13]
[1725110549227,4.0457,2527.0,2526.6,1.36746]
[1725110549427,4.0457,2527.0,2526.7,0.23744]
[1725110549428,1.1547,2527.0,2526.7,0.23744]
[1725110550338,1.1547,2527.0,2526.6,1.36745]
[1725110551924,1.39212,2527.0,2526.6,1.36745]
[1725110561631,1.00772,2527.0,2526.6,1.36745]
[1725110561834,0.62752,2527.0,2526.6,1.36745]
[1725110565028,0.62752,2527.0,2526.6,1.13]
[1725110565342,0.23743,2526.9,2526.6,1.13]
[1725110566034,0.62752,2527.0,2526.6,1.13]
[1725110569241,3.2078,2526.9,2526.6,1.13]
[1725110570245,3.44523,2526.9,2526.6,1.13]
[1725110574346,3.2078,2526.9,2526.6,1.13]
[1725110574539,3.2078,2526.9,2526.7,1.23744]
[1725110576452,0.23742,2527.0,2526.7,1.23744]
[1725110579052,0.23741,2527.1,2526.8,0.23743]
[1725110579247,0.23741,2527.1,2526.9,0.3567]
[1725110581137,3.80901,2527.2,2526.9,0.3567]
[1725110581650,3.80901,2527.2,2526.9,0.7097]
[1725110587853,0.60121,2527.2,2526.9,0.7097]
[1725110588061,3.80901,2527.2,2526.9,0.7097]
[1725110591952,0.3586,2527.1,2526.9,0.7097]
[1725110592354,0.3578,2527.0,2526.9,0.7097]
[1725110597157,0.3578,2527.0,2526.9,0.3567]
[1725110603649,0.3586,2527.1,2526.9,0.3567]
[1725110603650,3.5716,2527.2,2526.9,0.3567]
[1725110603851,3.9569,2527.2,2526.9,0.3567]
[1725110604060,3.9569,2527.2,2526.9,1.113]
[1725110609662,3.9569,2527.2,2527.0,0.23741]
[1725110609860,3.2078,2527.2,2527.0,0.23742]
[1725110614563,3.2078,2527.2,2527.1,0.23741]
[1725110614955,3.2078,2527.2,2527.1,4.19421]
[1725110617270,3.2078,2527.2,2527.1,3.9568]
[1725110618468,1.60293436,2527.4,2527.1,3.9568]
[1725110618667,4.81073436,2527.4,2527.0,0.23741]
[1725110619371,3.2078,2527.1,2526.9,1.35042]
[1725110619860,3.2078,2527.1,2527.0,3.9576]
[1725110620458,8.4441215,2527.4,2527.0,3.9576]
[1725110620669,8.4441215,2527.4,2526.9,1.35042]
[1725110621071,0.23739,2527.3,2526.9,1.35042]
[1725110626178,0.23739,2527.3,2526.9,1.113]
[1725110628874,0.60369,2527.3,2526.9,1.113]
[1725110629266,0.2374,2527.2,2526.9,1.113]
[1725110633175,0.2374,2527.2,2526.6,1.03629943]
[1725110633176,1.0,2527.2,2526.6,1.03629943]
[1725110633381,1.0,2527.2,2526.4,6.23654322]
[1725110633382,0.23747,2526.5,2526.4,0.00594436]
[1725110633676,7.82902826,2526.5,2526.4,0.00594436]
[1725110633880,4.19587,2526.5,2526.4,0.00594436]
[1725110634080,12.08765428,2526.5,2526.4,0.00594436]
[1725110635066,8.45634503,2526.5,2526.4,0.00594436]
[1725110642283,11.66414503,2526.5,2526.4,0.00594436]
[1725110654288,7.70574503,2526.5,2526.4,0.00594436]
[1725110657397,7.46827503,2526.5,2526.4,0.00594436]
[1725110657594,3.51445,2526.7,2526.4,0.00594436]
[1725110657595,2.891,2526.7,2526.4,0.00594436]
[1725110657899,0.23746,2526.6,2526.4,0.36254436]
[1725110658300,0.23746,2526.6,2526.5,0.3699]
[1725110659600,4.12845,2526.7,2526.5,0.3699]
[1725110659997,1.23745,2526.7,2526.5,0.3699]
[1725110671613,0.23746,2526.6,2526.5,0.3699]
[1725110671804,0.60886,2526.6,2526.5,0.3699]
[1725110672611,0.60886,2526.6,2526.4,0.36254436]
[1725110672612,0.23747,2526.5,2526.4,0.36254436]
[1725110672809,7.75817,2526.5,2526.4,0.00594436]
[1725110673010,0.2375,2526.1,2525.7,1.141]
[1725110673811,0.5946,2526.1,2525.7,1.141]
[1725110674018,0.5946,2526.1,2525.8,0.00594436]
[1725110674308,0.23752,2526.0,2525.8,0.00594436]
[1725110676707,0.59461,2526.1,2525.8,0.00594436]
[1725110679021,0.23752,2526.0,2525.8,0.00594436]
[1725110685227,0.97411,2526.1,2525.8,0.00594436]
[1725110685431,0.23751,2526.0,2525.8,0.00594436]
[1725110695243,0.97411,2526.1,2525.8,0.00594436]
[1725110699246,0.23751,2526.0,2525.8,0.00594436]
[1725110703350,3.2444,2526.2,2525.8,4.21374436]
[1725110703540,3.2444,2526.2,2525.9,0.3662]
[1725110703946,3.2444,2526.2,2526.0,0.3623]
[1725110708050,0.7261,2526.4,2526.0,1.3623]
[1725110708248,3.82936,2526.6,2526.2,1.0]
[1725110708449,3.82936,2526.6,2526.3,0.7442]
[1725110708450,4.20326,2526.6,2526.3,0.7442]
[1725110711850,3.9658,2526.6,2526.3,0.98168]
[1725110712051,0.3739,2526.6,2526.3,0.98168]
[1725110713768,10.79810925,2527.0,2526.3,0.98168]
[1725110713769,0.362,2526.9,2526.5,1.0]
[1725110713956,0.362,2526.9,2526.6,0.59905]
[1725110714145,0.362,2526.9,2526.7,0.3573]
[1725110714340,0.7468,2526.9,2526.7,0.3573]
[1725110714548,0.98423,2526.9,2526.6,0.7194]
[1725110714950,0.7468,2526.9,2526.6,0.7194]
[1725110715151,0.98423,2526.9,2526.6,0.7194]
[1725110715350,1.0,2526.8,2526.4,0.23747]
[1725110715555,1.0,2526.8,2526.5,0.3578]
[1725110716353,1.23744,2526.8,2526.5,0.3578]
[1725110717761,1.23744,2526.8,2526.4,0.3616]
[1725110717762,4.42238694,2526.7,2526.4,0.3616]
[1725110718056,4.42238694,2526.7,2526.5,0.377]
[1725110718456,1.0,2526.8,2526.5,0.377]
[1725110718457,1.23744,2526.8,2526.5,0.377]
[1725110718751,1.23744,2526.8,2526.6,0.3542]
[1725110723762,0.23744,2526.8,2526.6,0.3542]
[1725110724165,0.98423,2526.9,2526.6,0.3542]
[1725110724459,4.58381848,2526.8,2526.6,0.3542]
[1725110727370,0.98423,2526.9,2526.6,0.3542]
[1725110731965,0.7468,2526.9,2526.6,0.59166]
[1725110732171,0.23744,2526.8,2526.6,0.3542]
[1725110732471,0.23744,2526.8,2526.5,0.377]
[1725110733675,1.23744,2526.8,2526.5,0.377]
[1725110735074,4.16174819,2526.7,2526.3,0.23748]
[1725110735275,4.16174819,2526.7,2526.4,0.7667]
[1725110735471,0.3771,2526.6,2526.4,0.7667]
[1725110736285,0.7561,2526.6,2526.4,0.7667]
[1725110739272,0.7561,2526.6,2526.2,0.62509]
[1725110739273,0.23748,2526.4,2526.2,0.3876]
[1725110739471,0.23748,2526.4,2526.2,0.3533]
[1725110739772,0.3817,2526.3,2526.2,0.3533]
[1725110740582,0.81588716,2526.3,2526.1,4.5276]
[1725110740883,0.57839716,2526.3,2526.1,4.5276]
[1725110742575,0.3817,2526.3,2526.1,0.3696]
[1725110742777,3.44528,2526.4,2526.1,0.3696]
[1725110742978,3.44528,2526.4,2526.1,1.3696]
[1725110743383,0.23748,2526.4,2526.1,1.3696]
[1725110744493,0.97727,2526.5,2526.1,1.6071]
[1725110744787,0.23748,2526.4,2526.1,1.6071]
[1725110746787,0.97727,2526.5,2526.1,1.6071]
[1725110748484,0.97727,2526.5,2526.2,0.23749]
[1725110748687,0.97727,2526.5,2526.3,0.3558]
[1725110748887,0.97727,2526.5,2526.3,0.7325]
[1725110749089,0.7398,2526.5,2526.3,0.7325]
[1725110753698,0.361,2526.5,2526.3,0.96998]
[1725110755295,0.361,2526.5,2526.3,0.7325]
[1725110758691,0.59847,2526.5,2526.3,0.7325]
[1725110759704,0.361,2526.5,2526.3,0.7325]
[1725110770999,0.59847,2526.5,2526.3,0.7325]
[1725110772301,0.23748,2526.4,2526.1,0.3696]
[1725110772495,0.23748,2526.4,2526.1,0.7293]
[1725110772704,0.60888,2526.4,2526.1,0.7293]
[1725110776706,0.60888,2526.4,2526.1,3.9371]
[1725110777514,0.59847,2526.5,2526.1,3.9371]
[1725110777715,0.59847,2526.5,2526.1,4.1746]
[1725110778505,0.361,2526.5,2526.1,4.1746]
[1725110779018,0.59847,2526.5,2526.1,4.1746]
[1725110779212,0.59847,2526.5,2526.1,3.9371]
[1725110779213,0.361,2526.5,2526.1,3.9371]
[1725110779608,0.361,2526.5,2526.2,0.23749]
[1725110779807,0.361,2526.5,2526.3,0.3694]
[1725110780010,8.13776925,2526.6,2526.4,0.3812]
[1725110780306,4.36911133,2526.5,2526.4,0.7707]
[1725110780708,3.63130925,2526.6,2526.4,5.7291]
[1725110780911,11.28868154,2527.4,2526.4,5.7291]
[1725110780912,3.63130925,2527.1,2526.5,5.34391218]
[1725110781112,3.63130925,2527.2,2526.7,4.44524]
[1725110781321,0.23741,2527.1,2526.8,1.1484]
[1725110781519,1.61391,2527.1,2526.8,1.1484]
[1725110781715,0.3799,2527.0,2526.8,1.1484]
[1725110784315,4.53786029,2526.9,2526.6,0.3873]
[1725110784515,4.53786029,2526.9,2526.6,0.7509]
[1725110784516,0.23744,2526.8,2526.6,0.7509]
[1725110796630,0.3806,2526.7,2526.6,0.7509]
[1725110797522,3.5884,2526.7,2526.6,0.7509]
[1725110799018,3.5884,2526.7,2526.3,4.158]
[1725110799219,0.23748,2526.4,2526.3,4.5205]
[1725110799421,10.69870562,2526.7,2526.3,0.3625]
[1725110799422,10.31810562,2526.7,2526.3,0.3625]
[1725110799614,10.31810562,2526.7,2526.5,0.23746]
[1725110799615,3.2078,2526.7,2526.5,0.23746]
[1725110799815,3.2078,2526.7,2526.6,0.7605]
[1725110800030,3.2078,2526.7,2526.6,1.123]
[1725110800229,3.2078,2526.7,2526.6,5.0806]
[1725110800527,3.2078,2526.7,2526.6,1.123]
[1725110817045,0.3885,2526.8,2526.6,1.123]
[1725110823652,0.3885,2526.8,2526.6,1.36046]
[1725110823846,0.7263,2526.9,2526.6,1.36046]
[1725110824349,0.3736,2526.9,2526.6,1.36046]
[1725110832158,0.3736,2526.9,2526.6,4.56826]
[1725110838353,4.00170925,2527.0,2526.6,4.56826]
[1725110839962,3.63130925,2527.1,2526.9,0.23742]
[1725110840164,7.21450925,2527.2,2527.0,0.7185]
[1725110840355,3.9445,2527.2,2527.0,1.0718]
[1725110840561,4.9445,2527.2,2527.0,1.0718]
[1725110846168,1.0,2527.1,2527.0,1.0718]
[1725110846365,1.378,2527.1,2526.6,3.2078]
[1725110846572,1.378,2527.1,2526.7,1.1236]
[1725110846867,1.378,2527.1,2526.8,0.23743]
[1725110848671,1.378,2527.1,2526.7,1.36104]
[1725110851767,1.61541,2527.1,2526.7,1.36104]
[1725110853373,1.61541,2527.1,2526.7,1.1236]
[1725110853575,1.61541,2527.1,2526.7,1.36105]
[1725110853772,1.378,2527.1,2526.7,1.36105]
[1725110857378,1.61541,2527.1,2526.7,1.36105]
[1725110861482,1.61541,2527.1,2526.7,1.1236]
[1725110864899,0.61541,2527.1,2526.7,1.1236]
[1725110869804,0.61541,2527.1,2526.7,1.36105]
[1725110871705,0.61541,2527.1,2526.7,4.56885]
[1725110878504,0.23742,2527.0,2526.7,4.3314]
[1725110878722,1.0,2526.8,2526.5,4.158]
[1725110879002,1.0,2526.6,2526.5,4.158]
[1725110879198,4.86876925,2526.6,2526.5,4.158]
[1725110879400,4.86876925,2526.6,2526.3,0.3886]
[1725110879401,13.16831141,2526.6,2526.3,0.3886]
[1725110879602,5.57940216,2526.6,2526.3,0.3886]
[1725110879798,0.23748,2526.4,2526.3,0.3886]
[1725110880107,0.23748,2526.4,2526.0,15.05]
[1725110880108,0.23748,2526.3,2526.0,4.158]
[1725110880413,1.0,2526.2,2526.1,0.3894]
[1725110880715,4.48855581,2526.4,2526.1,0.3894]
[1725110880716,5.72603581,2526.4,2526.1,0.3894]
[1725110880904,1.23748,2526.4,2526.1,0.3894]
[1725110881309,1.0,2526.4,2526.1,0.3894]
[1725110881704,0.61697,2526.5,2526.1,0.3894]
[1725110883211,2.887,2526.6,2526.3,1.0]
[1725110883405,2.887,2526.6,2526.4,1.0876]
[1725110892111,3.12446,2526.6,2526.4,1.0876]
[1725110892315,3.887,2526.6,2526.4,0.7158]
[1725110892513,0.7309,2526.5,2526.4,0.7158]
[1725110892714,1.1047,2526.5,2526.4,0.7158]
[1725110893105,1.1047,2526.5,2526.1,4.5965]
[1725110893106,1.1047,2526.5,2526.1,3.5965]
[1725110893309,1.34217,2526.5,2526.1,3.965]
[1725110895820,1.34217,2526.5,2526.1,4.2025]
[1725110896616,1.34217,2526.5,2526.1,0.9947]
[1725110896817,1.34217,2526.5,2526.2,3.2078]
[1725110901320,1.1047,2526.5,2526.3,0.365]
[1725110901832,1.1047,2526.5,2526.4,0.3863]
[1725110902632,0.377,2526.5,2526.4,0.3863]
[1725110902831,0.377,2526.5,2526.4,0.7536]
[1725110904128,3.12446,2526.6,2526.4,0.7536]
[1725110904520,4.24235413,2526.5,2526.4,0.7536]
[1725110904725,4.24235413,2526.5,2526.4,0.99108]
[1725110913828,4.24235413,2526.5,2526.4,0.7536]
[1725110916539,4.24235413,2526.5,2526.4,0.99108]
[1725110918637,4.24235413,2526.5,2526.4,0.7536]
[1725110930244,4.61225413,2526.5,2526.4,0.7536]
[1725110930438,4.84972413,2526.5,2526.4,0.7536]
[1725110930639,5.23882413,2526.5,2526.3,0.365]
[1725110930840,0.3547,2526.4,2526.3,0.365]
[1725110932144,9.73602473,2526.4,2525.9,3.2078]
[1725110932344,1.23751,2526.1,2525.9,3.2078]
[1725110932549,1.1227,2526.0,2525.9,3.2078]
[1725110932741,1.36021,2526.0,2525.9,3.2078]
[1725110932939,0.23752,2525.9,2525.8,0.00594436]
[1725110934248,8.49484575,2525.9,2525.8,0.00594436]
[1725110936644,8.25732575,2525.9,2525.8,0.00594436]
[1725110937444,4.29812575,2525.9,2525.8,0.00594436]
[1725110938058,4.29812575,2525.9,2525.8,0.38144436]
[1725110946150,4.29812575,2525.9,2525.8,0.00594436]
[1725110947063,4.53564575,2525.9,2525.8,0.00594436]
[1725110947363,4.29812575,2525.9,2525.8,0.00594436]
[1725110948061,8.49484575,2525.9,2525.8,0.00594436]
[1725110949550,15.08865575,2525.9,2525.8,0.00594436]
[1725110951664,18.29645575,2525.9,2525.8,0.00594436]
[1725110952559,17.70264575,2525.9,2525.8,0.00594436]
[1725110952860,11.70264575,2525.9,2525.8,0.00594436]
[1725110953058,14.58964575,2525.9,2525.8,0.00594436]
[1725110958761,7.74344575,2525.9,2525.8,0.00594436]